fUSD/lending_fUSD_20251211
["ID","MTS","AMOUNT","RATE_DAILY","PERIOD"]
[398235941,1765443066520,-500.0,0.00038356,60]
[398235942,1765443066534,-596.60346202,0.00038356,60]
[398235943,1765443066543,-417.50742348,0.00038356,60]
[398235944,1765443066552,-500.0,0.00038356,60]
[398235945,1765443066562,-500.0,0.00038356,60]
[398235946,1765443066575,-500.0,0.00038356,60]
[398235947,1765443066584,-445.53879703,0.00038356,60]
[398235948,1765443066593,-500.0,0.00038356,60]
[398235949,1765443066602,-568.03228761,0.00038356,60]
[398235950,1765443066611,-500.0,0.00038356,60]
[398235951,1765443066621,-500.0,0.00038356,60]
[398235952,1765443066630,-500.0,0.00038356,60]
[398235953,1765443066639,-500.0,0.00038356,60]
[398235954,1765443066648,-500.0,0.00038356,60]
[398235955,1765443066657,-500.0,0.00038356,60]
[398235956,1765443066667,-500.0,0.00038356,60]
[398235957,1765443066676,-500.0,0.00038356,60]
[398235958,1765443066685,-500.0,0.00038356,60]
[398235959,1765443066694,-500.0,0.00038356,60]
[398235960,1765443066703,-401.77687641,0.00038356,60]
[398235961,1765443066712,-502.60770119,0.00038356,60]
[398235962,1765443066720,-500.0,0.00038356,60]
[398235963,1765443066729,-500.0,0.00038356,60]
[398235964,1765443066739,-500.0,0.00038356,60]
[398235965,1765443066748,-500.0,0.00038356,60]
[398235966,1765443066759,-500.0,0.00038356,60]
[398235967,1765443066768,-500.0,0.00038356,60]
[398235968,1765443066778,-500.0,0.00038356,60]
[398235969,1765443066787,-593.93014976,0.00038356,60]
[398235970,1765443066796,-500.0,0.00038356,60]
[398235971,1765443066805,-500.0,0.00038356,60]
[398235972,1765443066814,-500.0,0.00038356,60]
[398235973,1765443066823,-500.0,0.00038356,60]
[398235974,1765443066832,-500.0,0.00038356,60]
[398235975,1765443066842,-500.0,0.00038356,60]
[398235976,1765443066851,-500.0,0.00038356,60]
[398235977,1765443066860,-500.0,0.00038356,60]
[398235978,1765443066868,-500.0,0.00038356,60]
[398235979,1765443066877,-500.0,0.00038356,60]
[398235980,1765443066886,-500.0,0.00038356,60]
[398235981,1765443066895,-500.0,0.00038356,60]
[398235982,1765443066903,-500.0,0.00038356,60]
[398235983,1765443066913,-500.0,0.00038356,60]
[398235984,1765443066921,-501.34655012,0.00038356,60]
[398235985,1765443066930,-500.0,0.00038356,60]
[398235986,1765443066939,-500.0,0.00038356,60]
[398235987,1765443066948,-500.0,0.00038356,60]
[398235988,1765443066957,-503.74485319,0.00038356,60]
[398235989,1765443066966,-500.0,0.00038356,60]
[398235990,1765443066975,-500.0,0.00038356,60]
[398235991,1765443066984,-500.0,0.00038356,60]
[398235992,1765443066994,-500.0,0.00038356,60]
[398235993,1765443067004,-500.0,0.00038356,60]
[398235994,1765443067013,-500.0,0.00038356,60]
[398235995,1765443067022,-500.0,0.00038356,60]
[398235996,1765443067032,-500.0,0.00038356,60]
[398235997,1765443067042,-498.90267181,0.00038356,60]
[398235998,1765443067050,-500.0,0.00038356,60]
[398235999,1765443067059,-500.0,0.00038356,60]
[398236000,1765443067069,-398.22497322,0.00038356,60]
[398236001,1765443067079,-500.0,0.00038356,60]
[398236002,1765443067089,-542.40606083,0.00038356,60]
[398236003,1765443067100,-9931.68,0.00038359,5]
[398236004,1765443067109,-1741.36,0.00038359,60]
[398236005,1765443067122,-500.0,0.00038359,60]
[398236006,1765443067130,-500.0,0.00038359,60]
[398236007,1765443067140,-1759.73,0.00038359,60]
[398236008,1765443067149,-500.0,0.00038359,60]
[398236009,1765443067158,-10000.0,0.0003836,120]
[398236010,1765443067167,-150.0,0.00038378,7]
[398236011,1765443067176,-717.38,0.000384,30]
[398236012,1765443067185,-150.0,0.00038425,7]
[398236013,1765443067194,-150.0,0.00038425,7]
[398236014,1765443067203,-150.0,0.00038709,7]
[398236015,1765443067213,-150.0,0.00038709,7]
[398236016,1765443067223,-200.0,0.0003874,2]
[398236017,1765443067234,-150.0,0.00038751,7]
[398236018,1765443067243,-840.81659337,0.00038765,2]
[398236019,1765443067253,-21457.50767027,0.00038917,2]
[398236020,1765443067262,-150.0,0.00038937,7]
[398236021,1765443067271,-150.0,0.00038937,7]
[398236022,1765443067280,-150.0,0.00038937,7]
[398236023,1765443067289,-150.0,0.00038937,7]
[398236024,1765443067298,-150.0,0.00038937,7]
[398236025,1765443067308,-150.0,0.00038937,7]
[398236026,1765443067318,-12268.52316778,0.00038977,2]
[398236027,1765443067327,-500.0,0.00038999,60]
[398236028,1765443067336,-500.0,0.00038999,60]
[398236029,1765443067346,-500.0,0.00038999,60]
[398236030,1765443067355,-500.0,0.00038999,60]
[398236031,1765443067364,-500.0,0.00038999,60]
[398236032,1765443067375,-604.68,0.00038999,60]
[398236033,1765443067384,-510.08,0.00038999,60]
[398236034,1765443067393,-500.0,0.00038999,60]
[398236035,1765443067402,-500.0,0.00038999,60]
[398236036,1765443067411,-500.0,0.00038999,60]
[398236037,1765443067420,-500.0,0.00038999,60]
[398236038,1765443067430,-500.0,0.00038999,60]
[398236039,1765443067439,-500.0,0.00038999,60]
[398236040,1765443067448,-500.0,0.00038999,60]
[398236041,1765443067458,-500.0,0.00038999,60]
[398236042,1765443067467,-500.0,0.00038999,60]
[398236043,1765443067477,-500.0,0.00038999,60]
[398236044,1765443067486,-500.0,0.00038999,60]
[398236045,1765443067495,-500.0,0.00038999,60]
[398236046,1765443067506,-500.0,0.00038999,60]
[398236047,1765443067518,-730.34,0.00038999,60]
[398236048,1765443067528,-500.0,0.00038999,60]
[398236049,1765443067539,-313.20706716,0.00038999,60]
[398236050,1765443067549,-500.0,0.00038999,60]
[398236051,1765443067558,-86213.16687621,0.00039,2]
[398236052,1765443067567,-480.8162296,0.00039,120]
[398236053,1765443067578,-9591.0,0.00039104,5]
[398236054,1765443067588,-150.0,0.00039123,7]
[398236056,1765443067597,-200.0,0.00039127,2]
[398236057,1765443067606,-150.0,0.00039165,7]
[398236058,1765443067614,-150.0,0.00039165,7]
[398236059,1765443067623,-200.0,0.00039311,20]
[398236060,1765443067632,-840.81659337,0.00039373,2]
[398236061,1765443067640,-150.0,0.00039449,7]
[398236062,1765443067649,-150.0,0.00039449,7]
[398236063,1765443067658,-150.0,0.00039452,2]
[398236064,1765443067668,-150.21,0.00039452,2]
[398236065,1765443067678,-150.0,0.00039452,2]
[398236066,1765443067687,-150.0,0.00039452,2]
[398236067,1765443067696,-150.0,0.00039452,2]
[398236068,1765443067706,-150.0,0.00039452,2]
[398236069,1765443067715,-150.0,0.00039496,7]
[398236070,1765443067725,-169.87,0.000395,30]
[398236071,1765443067733,-200.0,0.00039518,2]
[398236072,1765443067743,-1000.0,0.000396,2]
[398236073,1765443067751,-150.0,0.0003962,7]
[398236074,1765443067761,-150.0,0.0003962,7]
[398236075,1765443067770,-274.07,0.00039654,2]
[398236076,1765443067780,-4796.07034412,0.00039673,2]
[398236077,1765443067790,-500.0,0.00039726,120]
[398236078,1765443067800,-150.0,0.00039868,7]
[398236079,1765443067809,-200.0,0.00039913,2]
[398236080,1765443067819,-150.0,0.00039962,7]
[398236081,1765443067828,-150.0,0.00039962,7]
[398236082,1765443067837,-150.0,0.00039962,7]
[398236083,1765443067846,-1380.98566234,0.00039964,2]
[398236084,1765443067856,-840.81659337,0.00039982,2]
[398236085,1765443067865,-150.0,0.0004,60]
[398236086,1765443067874,-170.31,0.0004,120]
[398236087,1765443067883,-1380.98566234,0.00040025,2]
[398236088,1765443067892,-250.48357596,0.0004005,7]
[398236089,1765443067901,-150.0,0.00040075,7]
[398236090,1765443067910,-150.0,0.00040075,7]
[398236091,1765443067920,-703.56,0.00040137,2]
[398236092,1765443067929,-960.63,0.00040137,2]
[398236093,1765443067938,-703.56,0.00040137,2]
[398236094,1765443067949,-1405.8,0.00040137,2]
[398236095,1765443067960,-480.43,0.00040137,2]
[398236096,1765443067969,-480.43,0.00040137,2]
[398236097,1765443067979,-480.43,0.00040137,2]
[398236098,1765443067988,-480.43,0.00040137,2]
[398236099,1765443067997,-480.43,0.00040137,2]
[398236100,1765443068008,-960.89,0.00040137,2]
[398236101,1765443068017,-703.56,0.00040137,2]
[398236102,1765443068026,-480.43,0.00040137,2]
[398236103,1765443068036,-480.43,0.00040137,2]
[398236104,1765443068045,-703.56,0.00040137,2]
[398236105,1765443068055,-703.56,0.00040137,2]
[398236106,1765443068064,-480.43,0.00040137,2]
[398236107,1765443068074,-150.0,0.00040241,7]
[398236108,1765443068083,-1105.32,0.00040274,2]
[398236109,1765443068092,-178.88,0.00040274,2]
[398236110,1765443068101,-150.0,0.00040274,2]
[398236111,1765443068111,-300.0,0.00040274,2]
[398236112,1765443068120,-170.32,0.00040274,2]
[398236113,1765443068129,-927.37,0.00040274,2]
[398236114,1765443068139,-178.13,0.00040274,2]
[398236115,1765443068148,-170.32,0.00040274,2]
[398236116,1765443068157,-150.0,0.00040274,2]
[398236117,1765443068167,-150.0,0.00040274,2]
[398236118,1765443068176,-150.0,0.00040274,2]
[398236119,1765443068185,-150.0,0.00040274,2]
[398236120,1765443068195,-178.13,0.00040274,2]
[398236121,1765443068204,-1216.3,0.00040274,2]
[398236122,1765443068213,-150.0,0.00040274,2]
[398236123,1765443068223,-150.0,0.00040274,2]
[398236124,1765443068232,-463.81,0.00040274,2]
[398236125,1765443068241,-300.08,0.00040274,2]
[398236126,1765443068251,-170.32,0.00040274,2]
[398236127,1765443068260,-552.86,0.00040274,2]
[398236128,1765443068270,-178.13,0.00040274,2]
[398236129,1765443068280,-150.0,0.00040274,2]
[398236130,1765443068290,-1216.3,0.00040274,2]
[398236131,1765443068300,-150.0,0.00040274,2]
[398236132,1765443068311,-170.32,0.00040274,2]
[398236133,1765443068321,-463.81,0.00040274,2]
[398236134,1765443068331,-1216.3,0.00040274,2]
[398236135,1765443068341,-150.0,0.00040274,2]
[398236136,1765443068350,-170.32,0.00040274,2]
[398236137,1765443068359,-150.0,0.00040274,2]
[398236138,1765443068369,-178.13,0.00040274,2]
[398236139,1765443068379,-150.0,0.00040274,2]
[398236140,1765443068388,-463.81,0.00040274,2]
[398236141,1765443068399,-150.0,0.00040474,7]
[398236142,1765443068408,-150.0,0.00040474,7]
[398236143,1765443068419,-150.0,0.00040531,7]
[398236144,1765443068428,-150.0,0.00040531,7]
[398236145,1765443068438,-1380.98566234,0.00040539,2]
[398236146,1765443068447,-150.38,0.00040548,2]
[398236147,1765443068457,-150.0,0.00040548,2]
[398236148,1765443068466,-200.0,0.00040572,20]
[398236149,1765443068475,-1380.98566234,0.00040581,2]
[398236150,1765443068484,-2711.28068,0.0004059,5]
[398236151,1765443068494,-840.81659337,0.0004059,2]
[398236152,1765443068503,-717.38,0.000406,30]
[398236153,1765443068514,-150.0,0.00040614,7]
[398236154,1765443068527,-219.76448304,0.00040614,2]
[398236155,1765443068536,-150.36185267,0.00040752,60]
[398236156,1765443068545,-2711.28068,0.0004078,6]
[398236157,1765443068555,-1603.0,0.00040812,2]
[398236158,1765443068565,-3443.0,0.00040812,2]
[398236159,1765443068575,-611.0,0.00040812,2]
[398236160,1765443068584,-684.0,0.00040812,2]
[398236161,1765443068595,-1260.0,0.00040812,2]
[398236162,1765443068604,-150.0,0.00040812,2]
[398236163,1765443068613,-4764.0,0.00040812,2]
[398236164,1765443068623,-500.0,0.00040821,120]
[398236165,1765443068632,-500.0,0.00040821,120]
[398236166,1765443068642,-500.0,0.00040821,120]
[398236167,1765443068651,-500.0,0.00040821,120]
[398236168,1765443068661,-500.0,0.00040821,120]
[398236169,1765443068670,-500.0,0.00040821,120]
[398236170,1765443068680,-500.0,0.00040821,120]
[398236171,1765443068690,-500.0,0.00040821,120]
[398236172,1765443068701,-500.0,0.00040821,120]
[398236173,1765443068711,-500.0,0.00040821,120]
[398236174,1765443068721,-500.0,0.00040821,120]
[398236175,1765443068730,-537.37,0.00040821,120]
[398236176,1765443068739,-500.0,0.00040821,60]
[398236177,1765443068748,-500.0,0.00040821,60]
[398236178,1765443068801,-500.0,0.00040821,60]
[398236179,1765443068809,-500.0,0.00040821,60]
[398236180,1765443068819,-500.0,0.00040821,60]
[398236181,1765443068828,-500.0,0.00040821,60]
[398236182,1765443068837,-500.0,0.00040821,60]
[398236183,1765443068846,-500.0,0.00040821,60]
[398236184,1765443068855,-500.0,0.00040821,60]
[398236185,1765443068865,-500.0,0.00040821,60]
[398236186,1765443068874,-500.0,0.00040821,60]
[398236187,1765443068883,-500.0,0.00040821,60]
[398236188,1765443068892,-500.0,0.00040821,60]
[398236189,1765443068901,-500.0,0.00040821,60]
[398236190,1765443068910,-500.0,0.00040821,60]
[398236191,1765443068920,-501.40442959,0.00040821,2]
[398236192,1765443068929,-500.0,0.00040821,60]
[398236193,1765443068938,-500.0,0.00040821,60]
[398236194,1765443068947,-500.0,0.00040821,60]
[398236195,1765443068956,-500.0,0.00040821,60]
[398236196,1765443068965,-500.0,0.00040821,60]
[398236197,1765443068975,-500.0,0.00040821,60]
[398236198,1765443068984,-500.0,0.00040821,60]
[398236199,1765443068994,-500.0,0.00040821,60]
[398236200,1765443069003,-500.0,0.00040821,60]
[398236201,1765443069012,-500.0,0.00040821,60]
[398236202,1765443069021,-500.0,0.00040821,60]
[398236203,1765443069030,-500.0,0.00040821,60]
[398236204,1765443069039,-500.0,0.00040821,60]
[398236205,1765443069048,-500.0,0.00040821,60]
[398236206,1765443069058,-500.0,0.00040821,60]
[398236207,1765443069067,-500.0,0.00040821,60]
[398236208,1765443069076,-500.0,0.00040821,60]
[398236209,1765443069085,-500.0,0.00040821,60]
[398236210,1765443069094,-500.0,0.00040821,60]
[398236211,1765443069104,-500.0,0.00040821,60]
[398236212,1765443069113,-500.0,0.00040821,60]
[398236213,1765443069123,-500.0,0.00040821,60]
[398236214,1765443069132,-500.0,0.00040821,60]
[398236215,1765443069141,-505.32069119,0.00040821,60]
[398236216,1765443069150,-500.0,0.00040821,60]
[398236217,1765443069159,-500.0,0.00040821,60]
[398236218,1765443069168,-500.0,0.00040821,60]
[398236219,1765443069177,-500.0,0.00040821,60]
[398236220,1765443069186,-500.0,0.00040821,60]
[398236221,1765443069195,-500.0,0.00040821,60]
[398236222,1765443069204,-753.97,0.00040821,60]
[398236223,1765443069213,-500.0,0.00040821,60]
[398236224,1765443069224,-753.97,0.00040821,60]
[398236225,1765443069233,-500.0,0.00040821,60]
[398236226,1765443069243,-753.97,0.00040821,60]
[398236227,1765443069252,-753.97,0.00040821,60]
[398236228,1765443069261,-753.97,0.00040821,60]
[398236229,1765443069270,-500.0,0.00040821,60]
[398236230,1765443069279,-753.97,0.00040821,60]
[398236231,1765443069288,-753.97,0.00040821,60]
[398236232,1765443069297,-753.97,0.00040821,60]
[398236233,1765443069306,-753.97,0.00040821,60]
[398236234,1765443069315,-500.0,0.00040821,60]
[398236235,1765443069325,-753.97,0.00040821,60]
[398236236,1765443069334,-500.0,0.00040821,60]
[398236237,1765443069343,-500.0,0.00040821,60]
[398236238,1765443069352,-500.0,0.00040821,60]
[398236239,1765443069361,-500.0,0.00040821,60]
[398236240,1765443069371,-500.0,0.00040821,60]
[398236241,1765443069380,-500.0,0.00040821,60]
[398236242,1765443069390,-500.0,0.00040821,60]
[398236243,1765443069399,-150.0,0.000409,2]
[398236244,1765443069408,-2279.88388076,0.000409,2]
[398236245,1765443069417,-744.5937931,0.000409,2]
[398236246,1765443069426,-1000.0,0.000409,7]
[398236247,1765443069436,-1434.77805256,0.000409,2]
[398236248,1765443069446,-291.438082,0.000409,2]
[398236249,1765443069455,-753.97,0.00040916,60]
[398236250,1765443069464,-183.58252775,0.00040917,60]
[398236251,1765443069473,-9931.68,0.00040917,5]
[398236252,1765443069482,-1741.36,0.00040917,60]
[398236253,1765443069491,-500.0,0.00040917,60]
[398236254,1765443069501,-500.0,0.00040917,60]
[398236255,1765443069510,-1759.73,0.00040917,60]
[398236256,1765443069520,-578.55319263,0.00040917,60]
[398236257,1765443069533,-118802.1909373,0.00040918,2]
[398236258,1765443069542,-322.69656579,0.0004098,120]
[398236259,1765443069551,-169.99279709,0.00040986,7]
[398236260,1765443069560,-267.25840344,0.00040986,7]
[398236261,1765443069569,-150.0,0.00040986,7]
[398236262,1765443069578,-150.0,0.00040986,7]
[398236263,1765443069586,-151.17525831,0.00040986,7]
[398236264,1765443069595,-150.0,0.00040986,7]
[398236265,1765443069604,-150.0,0.00040986,7]
[398236266,1765443069613,-150.0,0.00040986,7]
[398236267,1765443069622,-150.0,0.00040986,7]
[398236268,1765443069631,-150.0,0.00040986,7]
[398236269,1765443069640,-299.27048652,0.0004099,7]
[398236270,1765443069651,-500.0,0.00040998,60]
[398236271,1765443069660,-1308.8,0.00040998,7]
[398236272,1765443069669,-500.0,0.00040998,60]
[398236273,1765443069678,-500.0,0.00040998,60]
[398236274,1765443069687,-500.0,0.00040998,60]
[398236275,1765443069696,-500.0,0.00040998,60]
[398236276,1765443069704,-604.68,0.00040998,60]
[398236277,1765443069713,-510.08,0.00040998,60]
[398236278,1765443069722,-508.21442183,0.00040998,60]
[398236279,1765443069731,-500.0,0.00040998,60]
[398236280,1765443069740,-500.0,0.00040998,60]
[398236281,1765443069749,-500.0,0.00040998,60]
[398236282,1765443069758,-275.75953354,0.00040998,60]
[398236283,1765443069767,-303.72599715,0.00040998,60]
[398236284,1765443070119,-196.27400285,0.00040998,60]
[398236285,1765443070128,-500.0,0.00040998,60]
[398236286,1765443070137,-66.63406121,0.00040998,60]
[398236287,1765443070243,-458.87313864,0.00016437,2]
[398236288,1765443071570,-1.7e-07,0.00016437,2]
[398236289,1765443071600,243.4844,0.000158,2]
[398236290,1765443071751,-166.959546,0.000159,2]
[398236291,1765443071829,-158.10447563,0.000159,2]
[398236292,1765443071838,-258.37552495,0.00016437,2]
[398236293,1765443071850,-118.75133624,0.00016437,2]
[398236294,1765443071859,-150.0,0.00017047,2]
[398236295,1765443071868,-250.0,0.00020877,2]
[398236296,1765443071877,-287.932,0.00034812,2]
[398236297,1765443071886,-253.0,0.00037812,2]
[398236298,1765443071896,-1406.46,0.00040137,2]
[398236299,1765443071905,-480.43,0.00040137,2]
[398236300,1765443071914,-1214.44,0.00040274,2]
[398236301,1765443071923,-178.13,0.00040274,2]
[398236302,1765443071932,-150.0,0.00040274,2]
[398236303,1765443071941,-170.32,0.00040274,2]
[398236304,1765443071950,-195.5,0.00040274,2]
[398236305,1765443071960,-150.0,0.00040274,2]
[398236306,1765443071969,-253.0,0.00040812,2]
[398236307,1765443071979,-500.0,0.00040821,60]
[398236308,1765443071988,-500.0,0.00040821,60]
[398236309,1765443071997,-500.0,0.00040821,60]
[398236310,1765443072007,-500.0,0.00040821,60]
[398236311,1765443072017,-500.0,0.00040821,60]
[398236312,1765443072026,-500.0,0.00040821,60]
[398236313,1765443072035,-500.0,0.00040821,60]
[398236314,1765443072044,-500.0,0.00040821,60]
[398236315,1765443072053,-500.0,0.00040821,60]
[398236316,1765443072062,-500.0,0.00040821,60]
[398236317,1765443072071,-500.0,0.00040821,60]
[398236318,1765443072081,-500.0,0.00040821,60]
[398236319,1765443072090,-500.0,0.00040821,60]
[398236320,1765443072100,-500.0,0.00040821,60]
[398236321,1765443072109,-500.0,0.00040821,60]
[398236322,1765443072118,-433.36593879,0.00040998,60]
[398236323,1765443072128,-500.0,0.00040998,60]
[398236324,1765443072137,-500.0,0.00040998,60]
[398236325,1765443072146,-500.0,0.00040998,60]
[398236326,1765443072156,-730.34,0.00040998,60]
[398236327,1765443072165,-500.0,0.00040998,60]
[398236328,1765443072175,-500.0,0.00040998,60]
[398236329,1765443072185,-305.56812174,0.00040999,60]
[398236330,1765443072194,-500.0,0.00040999,60]
[398236331,1765443072203,-500.0,0.00040999,60]
[398236332,1765443072213,-198.9,0.00040999,60]
[398236333,1765443072222,-500.0,0.00040999,60]
[398236334,1765443072232,-500.0,0.00040999,60]
[398236335,1765443072242,-479.55446378,0.00040999,60]
[398236336,1765443072251,-500.0,0.00040999,60]
[398236337,1765443072260,-500.0,0.00040999,60]
[398236338,1765443072270,-500.0,0.00040999,60]
[398236339,1765443072279,-548.85593798,0.00040999,60]
[398236340,1765443072288,-500.0,0.00040999,60]
[398236341,1765443072300,-500.0,0.00040999,60]
[398236342,1765443072310,-604.68,0.00040999,60]
[398236343,1765443072320,-604.68,0.00040999,60]
[398236344,1765443072330,-604.68,0.00040999,60]
[398236345,1765443072339,-604.68,0.00040999,60]
[398236346,1765443072349,-604.68,0.00040999,60]
[398236347,1765443072358,-604.68,0.00040999,60]
[398236348,1765443072368,-510.08,0.00040999,60]
[398236349,1765443072378,-510.08,0.00040999,60]
[398236350,1765443072387,-510.08,0.00040999,60]
[398236351,1765443072396,-510.08,0.00040999,60]
[398236352,1765443072406,-510.08,0.00040999,60]
[398236353,1765443072415,-510.08,0.00040999,60]
[398236354,1765443072424,-500.0,0.00040999,60]
[398236355,1765443072434,-500.0,0.00040999,60]
[398236356,1765443072443,-500.0,0.00040999,60]
[398236357,1765443072453,-500.0,0.00040999,60]
[398236358,1765443072462,-500.0,0.00040999,60]
[398236359,1765443072471,-500.0,0.00040999,60]
[398236360,1765443072480,-500.0,0.00040999,60]
[398236361,1765443072489,-500.0,0.00040999,60]
[398236362,1765443072499,-500.0,0.00040999,60]
[398236363,1765443072508,-500.0,0.00040999,60]
[398236364,1765443072518,-500.0,0.00040999,60]
[398236365,1765443072530,-500.0,0.00040999,60]
[398236366,1765443072539,-500.0,0.00040999,60]
[398236367,1765443072549,-209.15349784,0.00040999,60]
[398236368,1765443072558,-247.04169811,0.00040999,60]
[398236369,1765443072567,-2711.28068,0.00040999,7]
[398236370,1765443072576,-500.0,0.00040999,60]
[398236371,1765443072586,-500.0,0.00040999,60]
[398236372,1765443072595,-500.0,0.00040999,60]
[398236373,1765443072605,-500.0,0.00040999,60]
[398236374,1765443072615,-500.0,0.00040999,60]
[398236375,1765443072624,-500.0,0.00040999,60]
[398236376,1765443072634,-500.0,0.00040999,60]
[398236377,1765443072643,-500.0,0.00040999,60]
[398236378,1765443072652,-500.0,0.00040999,60]
[398236379,1765443072662,-500.0,0.00040999,60]
[398236380,1765443072672,-500.0,0.00040999,60]
[398236381,1765443072682,-500.0,0.00040999,60]
[398236382,1765443072691,-500.0,0.00040999,60]
[398236383,1765443072700,-500.0,0.00040999,60]
[398236384,1765443072709,-500.0,0.00040999,60]
[398236385,1765443072719,-500.0,0.00040999,60]
[398236386,1765443072728,-500.0,0.00040999,60]
[398236387,1765443072737,-500.0,0.00040999,60]
[398236388,1765443072746,-537.30183924,0.00040999,60]
[398236389,1765443072756,-730.34,0.00040999,60]
[398236390,1765443072766,-730.34,0.00040999,60]
[398236391,1765443072775,-730.34,0.00040999,60]
[398236392,1765443072785,-730.34,0.00040999,60]
[398236393,1765443072795,-730.34,0.00040999,60]
[398236394,1765443072807,-730.34,0.00040999,60]
[398236395,1765443072817,-500.0,0.00040999,60]
[398236396,1765443072827,-500.0,0.00040999,60]
[398236397,1765443072837,-500.0,0.00040999,60]
[398236398,1765443072847,-185.55316109,0.00040999,60]
[398236399,1765443072857,-500.0,0.00040999,60]
[398236400,1765443072866,-480.63153762,0.00040999,60]
[398236401,1765443072876,-9931.68,0.00040999,5]
[398236402,1765443072886,-9931.68,0.00040999,5]
[398236403,1765443072895,-9931.68,0.00040999,5]
[398236404,1765443072905,-9931.68,0.00040999,5]
[398236405,1765443072914,-9931.68,0.00040999,5]
[398236406,1765443072923,-9931.68,0.00040999,5]
[398236407,1765443072933,-1741.36,0.00040999,60]
[398236408,1765443072942,-1741.36,0.00040999,60]
[398236409,1765443072951,-1741.36,0.00040999,60]
[398236410,1765443072960,-1741.36,0.00040999,60]
[398236411,1765443072969,-1741.36,0.00040999,60]
[398236412,1765443072978,-1741.36,0.00040999,60]
[398236413,1765443072989,-500.0,0.00040999,60]
[398236414,1765443072999,-500.0,0.00040999,60]
[398236415,1765443073009,-500.0,0.00040999,60]
[398236416,1765443073018,-500.0,0.00040999,60]
[398236417,1765443073029,-500.0,0.00040999,60]
[398236418,1765443073040,-500.0,0.00040999,60]
[398236419,1765443073049,-1000.0,0.00040999,3]
[398236420,1765443073058,-500.0,0.00040999,60]
[398236421,1765443073067,-500.0,0.00040999,60]
[398236422,1765443073077,-599.7453991,0.00040999,60]
[398236423,1765443073086,-1759.73,0.00040999,60]
[398236424,1765443073096,-1759.73,0.00040999,60]
[398236425,1765443073262,-1759.73,0.00040999,60]
[398236426,1765443073272,-1759.73,0.00040999,60]
[398236427,1765443073281,-1759.73,0.00040999,60]
[398236428,1765443073290,-1759.73,0.00040999,60]
[398236429,1765443073300,-753.97,0.00040999,60]
[398236430,1765443073309,-753.97,0.00040999,60]
[398236431,1765443073319,-753.97,0.00040999,60]
[398236432,1765443073329,-753.97,0.00040999,60]
[398236433,1765443073338,-753.97,0.00040999,60]
[398236434,1765443073348,-753.97,0.00040999,60]
[398236435,1765443073357,-753.97,0.00040999,60]
[398236436,1765443073366,-19560.6282264,0.00041,30]
[398236437,1765443073379,-9641.3545841,0.00041,30]
[398236438,1765443073402,-901.51424783,0.00041,30]
[398236439,1765443073781,250.0,0.0001585,2]
[398236440,1765443073850,195.0,0.00015825,2]
[398236441,1765443073963,300.0,0.00015825,2]